bitfinex-derivatives/quotes_BTCF0:USTF0_20260119
["timestamp","ask_amount","ask_price","bid_price","bid_amount"]
[1768863521961,0.10111163,92677.0,92658.0,0.00959836]
[1768863523265,0.0983263,92675.0,92654.0,0.00906469]
[1768863523965,0.10762872,92675.0,92654.0,0.00906469]
[1768863524452,0.0983263,92673.0,92658.0,0.010799]
[1768863524657,0.10762872,92679.0,92658.0,0.00906469]
[1768863524863,0.0983263,92677.0,92658.0,0.00906469]
[1768863525062,0.13468851,92676.0,92658.0,0.00906469]
[1768863525258,0.10762872,92670.0,92650.0,0.00906469]
[1768863525470,0.0983263,92670.0,92653.0,0.00906469]
[1768863525672,0.0983263,92676.0,92658.0,0.010799]
[1768863525863,0.13470388,92675.0,92657.0,0.01986369]
[1768863526170,0.13470388,92674.0,92657.0,0.00906469]
[1768863526358,0.13470388,92673.0,92653.0,0.00906469]
[1768863526559,0.03637758,92672.0,92657.0,0.010799]
[1768863526758,0.03637758,92672.0,92653.0,0.00906469]
[1768863527061,0.13470388,92672.0,92656.0,0.010799]
[1768863527257,0.03637758,92671.0,92656.0,0.010799]
[1768863527868,0.03637758,92671.0,92649.0,0.00237457]
[1768863527869,0.10762872,92660.0,92649.0,0.00237457]
[1768863528166,0.0983263,92660.0,92649.0,0.00237457]
[1768863529264,0.0983263,92660.0,92649.0,0.00227194]
[1768863529460,0.03655516,92659.0,92642.0,0.00906469]
[1768863529660,0.0983263,92660.0,92625.0,0.80836]
[1768863529661,0.03655516,92658.0,92641.0,0.010801]
[1768863529866,0.03655516,92657.0,92641.0,0.010801]
[1768863530061,0.03655516,92656.0,92641.0,0.00906469]
[1768863530263,0.03655516,92655.0,92641.0,0.00906469]
[1768863530569,0.03655516,92654.0,92643.0,0.010801]
[1768863530762,0.03655516,92653.0,92644.0,0.01143937]
[1768863530971,0.03655516,92652.0,92644.0,0.01143937]
[1768863531162,0.03628672,92651.0,92644.0,0.01143937]
[1768863531366,0.03628672,92650.0,92644.0,0.01143937]
[1768863531562,0.0983263,92660.0,92644.0,0.01143937]
[1768863531765,0.03546802,92659.0,92644.0,0.01143937]
[1768863531963,0.03546802,92658.0,92644.0,0.01143937]
[1768863532164,0.03546802,92657.0,92644.0,0.01143937]
[1768863532468,0.0983263,92660.0,92644.0,0.01143937]
[1768863532469,0.03546802,92656.0,92644.0,0.01143937]
[1768863532664,0.03546802,92655.0,92644.0,0.01143937]
[1768863532858,0.03546802,92654.0,92644.0,0.01143937]
[1768863533167,0.03546802,92653.0,92644.0,0.01143937]
[1768863533364,0.0983263,92660.0,92644.0,0.00237468]
[1768863533365,0.03546802,92652.0,92644.0,0.00237468]
[1768863533565,0.03546802,92651.0,92644.0,0.00237468]
[1768863533761,0.10781444,92660.0,92644.0,0.00237468]
[1768863533966,0.10086593,92654.0,92644.0,0.00237468]
[1768863534162,0.03508112,92653.0,92644.0,0.00237468]
[1768863534366,0.03508112,92652.0,92644.0,0.00237468]
[1768863534566,0.03516173,92651.0,92644.0,0.00237468]
[1768863534762,0.03508112,92650.0,92644.0,0.00237468]
[1768863534970,0.03508112,92649.0,92644.0,0.00237468]
[1768863535172,0.03508112,92648.0,92637.0,0.09542752]
[1768863535373,8.061e-05,92651.0,92637.0,0.09542752]
[1768863535565,0.03438517,92650.0,92637.0,0.09542752]
[1768863535871,0.03438517,92649.0,92637.0,0.09542752]
[1768863536074,8.061e-05,92651.0,92637.0,0.09542752]
[1768863536662,8.061e-05,92651.0,92639.0,0.010801]
[1768863537667,0.10086593,92647.0,92639.0,0.010801]
[1768863537866,8.061e-05,92651.0,92639.0,0.010801]
[1768863538265,8.061e-05,92651.0,92639.0,0.020471]
[1768863538878,8.061e-05,92651.0,92640.0,0.00967]
[1768863539467,8.061e-05,92651.0,92635.0,0.09189318]
[1768863539468,8.061e-05,92651.0,92636.0,0.00967]
[1768863540976,0.0914584,92651.0,92633.0,0.010802]
[1768863541179,0.03171754,92650.0,92633.0,0.010802]
[1768863541381,0.03172738,92649.0,92633.0,0.020472]
[1768863541678,0.0914584,92651.0,92633.0,0.020472]
[1768863541875,0.03164144,92650.0,92634.0,0.00967]
[1768863542079,0.03164144,92649.0,92634.0,0.00967]
[1768863542271,0.0914584,92651.0,92634.0,0.00967]
[1768863542472,0.03164941,92650.0,92635.0,0.010802]
[1768863542673,0.03164941,92649.0,92634.0,0.00967]
[1768863542868,0.03164941,92648.0,92634.0,0.00967]
[1768863543073,0.0914584,92651.0,92634.0,0.00967]
[1768863543281,0.03164765,92650.0,92634.0,0.00967]
[1768863543578,0.03164765,92649.0,92634.0,0.020472]
[1768863543775,0.0914584,92651.0,92635.0,0.00967]
[1768863543977,0.03141534,92650.0,92636.0,0.00967]
[1768863544183,0.09137779,92640.0,92624.0,0.01204519]
[1768863544477,8.061e-05,92651.0,92630.0,0.00967]
[1768863544680,0.03138078,92650.0,92633.0,0.00967]
[1768863544883,8.061e-05,92651.0,92633.0,0.00967]
[1768863545073,0.00016191,92650.0,92633.0,0.00967]
[1768863545671,0.00016191,92650.0,92635.0,0.00967]
[1768863546472,0.00016191,92650.0,92632.0,0.010802]
[1768863546689,0.00016191,92650.0,92632.0,0.020472]
[1768863546981,0.00016191,92650.0,92633.0,0.00967]
[1768863547278,0.0915397,92650.0,92633.0,0.00967]
[1768863547581,0.0915397,92650.0,92632.0,0.020472]
[1768863547778,0.10086593,92648.0,92630.0,0.18192732]
[1768863547978,0.10086593,92648.0,92631.0,0.010802]
[1768863548184,0.10086593,92648.0,92630.0,0.18192732]
[1768863548185,0.10086593,92648.0,92632.0,0.010802]
[1768863548386,0.10086593,92648.0,92630.0,0.19159732]
[1768863548573,0.09137779,92648.0,92631.0,0.00967]
[1768863549183,0.09137779,92648.0,92631.0,0.020472]
[1768863549587,0.10086593,92644.0,92631.0,0.010802]
[1768863549782,0.10086593,92642.0,92629.0,0.00237508]
[1768863549980,0.10086593,92642.0,92630.0,0.18192732]
[1768863550176,0.10086593,92642.0,92629.0,0.00237508]
[1768863550381,0.10086593,92642.0,92630.0,0.18192732]
[1768863550683,0.09137779,92642.0,92630.0,0.18192732]
[1768863551888,0.09137779,92642.0,92629.0,0.00237508]
[1768863552187,0.27330511,92640.0,92609.0,0.00497559]
[1768863552390,0.09137779,92629.0,92614.0,0.010804]
[1768863552584,0.10086593,92633.0,92619.0,0.18192732]
[1768863552781,0.0972,92633.0,92619.0,0.18192732]
[1768863553082,0.0972,92638.0,92623.0,0.00743255]
[1768863553286,0.00016191,92635.0,92620.0,0.00743255]
[1768863553583,0.0972,92638.0,92627.0,0.00743255]
[1768863553774,0.18857779,92640.0,92625.0,0.00743255]
[1768863554286,0.00948814,92636.0,92619.0,0.010803]
[1768863554472,0.09137779,92635.0,92620.0,0.00743255]
[1768863554678,0.09137779,92635.0,92624.0,0.00743255]
[1768863555178,0.09137779,92635.0,92626.0,0.00743255]
[1768863555378,0.09137779,92635.0,92623.0,0.00743255]
[1768863555579,0.09137779,92635.0,92624.0,0.00743255]
[1768863555981,0.00948814,92636.0,92619.0,0.010803]
[1768863555982,0.10086593,92633.0,92626.0,0.00743255]
[1768863556184,0.10086593,92633.0,92621.0,0.00743255]
[1768863556380,0.10086593,92633.0,92623.0,0.00743255]
[1768863556887,0.10086593,92633.0,92625.0,0.00743255]
[1768863557082,0.10086593,92633.0,92623.0,0.00743255]
[1768863557281,0.10086593,92633.0,92620.0,0.18192732]
[1768863557478,0.10086593,92633.0,92624.0,0.00743255]
[1768863557787,0.10086593,92633.0,92617.0,0.00016191]
[1768863557988,0.10086593,92633.0,92622.0,0.00743255]
[1768863558391,0.10086593,92633.0,92620.0,0.18192732]
[1768863558591,0.10086593,92633.0,92623.0,0.00743255]
[1768863558986,0.10086593,92633.0,92625.0,0.00743255]
[1768863559181,0.00948814,92638.0,92622.0,0.00743255]
[1768863559386,0.10086593,92636.0,92620.0,0.18192732]
[1768863559989,0.10086593,92636.0,92623.0,0.00743255]
[1768863560194,0.10086593,92636.0,92622.0,0.00743255]
[1768863560384,0.09137779,92634.0,92622.0,0.00743255]
[1768863560587,0.09137779,92634.0,92620.0,0.18192732]
[1768863560795,0.09137779,92634.0,92623.0,0.00743255]
[1768863561002,0.09137779,92634.0,92620.0,0.18192732]
[1768863561178,0.09137779,92634.0,92623.0,0.00743255]
[1768863561491,0.09137779,92634.0,92624.0,0.00743255]
[1768863561685,0.09137779,92632.0,92624.0,0.00743255]
[1768863561887,0.09137779,92632.0,92620.0,0.18192732]
[1768863562084,0.09137779,92632.0,92625.0,0.00743255]
[1768863562287,0.10086593,92632.0,92625.0,0.00743255]
[1768863562592,0.00948814,92637.0,92628.0,0.00743255]
[1768863562894,0.00948814,92637.0,92621.0,0.00743255]
[1768863563088,0.10668535,92640.0,92623.0,0.00743255]
[1768863563391,0.10668535,92640.0,92621.0,0.00743255]
[1768863563594,0.10668535,92640.0,92621.0,0.01823555]
[1768863563793,0.10668535,92640.0,92622.0,0.00743255]
[1768863563989,0.00948535,92639.0,92622.0,0.00743255]
[1768863564186,0.00948535,92639.0,92623.0,0.00743255]
[1768863564386,0.00948535,92633.0,92623.0,0.00743255]
[1768863564592,0.10148676,92630.0,92621.0,0.010803]
[1768863564988,0.00948535,92634.0,92620.0,0.19273032]
[1768863565586,0.09200141,92635.0,92620.0,0.19273032]
[1768863565794,0.10148676,92635.0,92620.0,0.010803]
[1768863565989,0.0972,92640.0,92617.0,0.00016191]
[1768863565990,0.10148676,92633.0,92617.0,0.01096591]
[1768863566186,0.10148676,92633.0,92620.0,0.18192732]
[1768863566386,0.10148676,92632.0,92620.0,0.18192732]
[1768863566587,0.00948535,92631.0,92620.0,0.18192732]
[1768863566793,0.10148676,92631.0,92620.0,0.18192732]
[1768863567095,0.10148676,92631.0,92617.0,0.00016191]
[1768863567290,0.10148676,92625.0,92612.0,0.0972]
[1768863567595,0.09200141,92623.0,92610.0,0.18192732]
[1768863567986,0.00016191,92633.0,92618.0,0.00962097]
[1768863568386,0.10148676,92624.0,92610.0,0.18192732]
[1768863569092,0.10148676,92624.0,92610.0,0.19273132]
[1768863569298,0.00948535,92615.0,92601.0,0.01256635]
[1768863569590,0.09200141,92614.0,92605.0,0.18192732]
[1768863569782,0.00011323,92613.0,92605.0,0.18192732]
[1768863569987,0.00011323,92613.0,92606.0,0.010805]
[1768863570990,0.0972,92630.0,92608.0,0.02042597]
[1768863571197,0.18920141,92630.0,92609.0,0.18192732]
[1768863571387,0.00948535,92628.0,92609.0,0.18192732]
[1768863571582,0.10148676,92626.0,92609.0,0.18192732]
[1768863571792,0.09209663,92625.0,92609.0,0.18192732]
[1768863572188,0.10158198,92625.0,92609.0,0.18192732]
[1768863572689,0.09200141,92620.0,92602.0,0.108005]
[1768863572887,0.10148676,92620.0,92610.0,0.18192732]
[1768863573686,0.09200141,92618.0,92610.0,0.18192732]
[1768863574096,0.09200141,92618.0,92608.0,0.18192732]
[1768863575193,0.09200141,92618.0,92606.0,0.0603]
[1768863575397,0.09200141,92618.0,92608.0,0.18192732]
[1768863575597,0.09200141,92617.0,92606.0,0.0603]
[1768863575892,0.09200141,92615.0,92607.0,0.18192732]
[1768863576083,0.09200141,92615.0,92606.0,0.0603]
[1768863576491,0.09200141,92609.0,92600.0,0.00016191]
[1768863576697,0.10148676,92624.0,92600.0,0.00016191]
[1768863576895,0.10148676,92622.0,92610.0,0.18192732]
[1768863577094,0.10148676,92622.0,92603.0,0.00962097]
[1768863577095,0.09200141,92622.0,92603.0,0.00962097]
[1768863577401,0.09200141,92619.0,92601.0,0.00962097]
[1768863577794,0.00948535,92622.0,92601.0,0.00962097]
[1768863577991,0.00948535,92620.0,92600.0,0.00016191]
[1768863578296,9.522e-05,92625.0,92603.0,0.09654684]
[1768863578500,9.522e-05,92625.0,92604.0,0.00962097]
[1768863578901,0.10148676,92624.0,92610.0,0.18192732]
[1768863579100,0.09200141,92624.0,92610.0,0.18192732]
[1768863579297,0.09200141,92624.0,92607.0,0.00962097]
[1768863579494,0.09200141,92619.0,92588.0,0.0972]
[1768863580003,0.09200141,92609.0,92588.0,0.0972]
[1768863580700,0.09200141,92609.0,92587.0,0.010807]
[1768863580999,0.09200141,92602.0,92588.0,0.0972]
[1768863581199,0.00948535,92599.0,92588.0,0.0972]
[1768863581507,0.00934271,92594.0,92583.0,0.02784091]
[1768863581699,0.00934271,92593.0,92583.0,0.02784091]
[1768863581893,0.00934271,92598.0,92583.0,0.02784091]
[1768863582093,0.09540995,92600.0,92583.0,0.02784091]
[1768863582294,0.09540995,92595.0,92583.0,0.02784091]
[1768863582898,0.00016191,92603.0,92565.0,0.0972]
[1768863582899,0.00934271,92586.0,92565.0,0.0972]
[1768863583101,0.00010626,92585.0,92572.0,0.13584891]
[1768863583307,0.00010626,92585.0,92575.0,0.18192732]
[1768863583601,0.00010626,92585.0,92577.0,0.13584891]
[1768863583903,0.00010626,92585.0,92580.0,0.13584891]
[1768863584104,0.00010626,92585.0,92581.0,0.13584891]
[1768863584307,0.00010626,92585.0,92580.0,0.12584891]
[1768863584503,0.00010626,92585.0,92575.0,0.18192732]
[1768863584695,0.00762239,92595.0,92584.0,0.12584891]
[1768863584899,0.19260995,92599.0,92580.0,0.18192732]
[1768863585206,0.20023234,92599.0,92580.0,0.18192732]
[1768863585406,0.00762239,92598.0,92582.0,0.12584891]
[1768863585810,0.07448232,92599.0,92573.0,0.09724]
[1768863586406,0.07448232,92599.0,92580.0,0.18192732]
[1768863586910,0.11822652,92596.0,92580.0,0.18192732]
[1768863587308,0.11822652,92595.0,92580.0,0.18192732]
[1768863587511,0.23224734,92640.0,92580.0,0.18192732]
[1768863587512,0.09724,92606.0,92585.0,0.19150893]
[1768863587697,0.09724,92606.0,92589.0,0.18192732]
[1768863588109,0.09724,92606.0,92585.0,0.10394626]
[1768863588310,0.09724,92606.0,92590.0,0.18192732]
[1768863588713,0.09724,92606.0,92585.0,0.10394626]
[1768863588911,0.0093889,92610.0,92590.0,0.18192732]
[1768863589103,0.09724,92607.0,92590.0,0.18192732]
[1768863589298,0.11822652,92602.0,92590.0,0.18192732]
[1768863589812,0.11822652,92602.0,92582.0,0.10682161]
[1768863590009,0.01022023,92605.0,92582.0,0.11762961]
[1768863590717,0.09724,92607.0,92580.0,0.18192732]
[1768863590718,0.01022023,92602.0,92580.0,0.18192732]
[1768863590904,0.01022023,92602.0,92580.0,0.19150893]
[1768863590905,0.12844675,92602.0,92580.0,0.19150893]
[1768863591307,0.01022023,92599.0,92577.0,0.09724]
[1768863591505,0.01022023,92599.0,92580.0,0.18192732]
[1768863591817,0.00011324,92598.0,92580.0,0.18192732]
[1768863593310,0.11833976,92598.0,92580.0,0.18192732]
[1768863595410,0.11822652,92597.0,92580.0,0.18192732]
[1768863595611,0.11822652,92597.0,92577.0,0.09724]
[1768863595811,0.00011324,92598.0,92580.0,0.18192732]
[1768863596216,0.11822652,92597.0,92580.0,0.18192732]
[1768863596418,0.11822652,92597.0,92578.0,0.0095816]
[1768863596716,0.00011324,92598.0,92580.0,0.18192732]
[1768863596915,0.11833976,92598.0,92580.0,0.18192732]
[1768863597216,0.11822652,92597.0,92580.0,0.18192732]
[1768863597612,0.11822652,92596.0,92580.0,0.18192732]
[1768863597919,0.11822652,92597.0,92580.0,0.18192732]
[1768863598122,0.11822652,92597.0,92578.0,0.0095816]
[1768863598314,0.0004595,92596.0,92577.0,0.19291339]
[1768863598522,0.01618577,92597.0,92580.0,0.18192732]
[1768863599011,0.11822652,92596.0,92580.0,0.18192732]
[1768863599412,0.11822652,92595.0,92580.0,0.18192732]
[1768863599616,0.11822652,92596.0,92580.0,0.18192732]
[1768863600114,0.11822652,92595.0,92580.0,0.18192732]
[1768863600419,0.18192732,92590.0,92578.0,0.0095816]
[1768863600720,0.00039034,92608.0,92587.0,0.0095816]
[1768863600925,0.09669927,92651.0,92586.0,0.09567339]
[1768863600926,0.00039034,92605.0,92586.0,0.09567339]
[1768863601223,0.11822652,92598.0,92580.0,0.09567339]
[1768863601514,0.11822652,92598.0,92582.0,0.10525499]
[1768863601714,0.0001861,92621.0,92593.0,0.10525499]
[1768863601922,0.12730899,92620.0,92598.0,0.0095816]
[1768863602105,0.02988289,92619.0,92599.0,0.0095816]
[1768863602420,0.11822652,92612.0,92599.0,0.0095816]
[1768863602627,0.11822652,92611.0,92598.0,0.09567339]
[1768863603113,0.11822652,92607.0,92596.0,0.000162]
[1768863603318,0.0001861,92615.0,92596.0,0.000162]
[1768863603319,0.11822652,92613.0,92597.0,0.18192732]
[1768863603505,0.0001861,92615.0,92596.0,0.000162]
[1768863603506,0.11822652,92609.0,92596.0,0.000162]
[1768863603705,0.11822652,92610.0,92599.0,0.0095816]
[1768863603919,0.11851898,92622.0,92599.0,0.0095816]
[1768863604218,0.11822652,92617.0,92603.0,0.10525499]
[1768863604416,0.01507212,92630.0,92609.0,0.0095816]
[1768863604612,0.00029246,92634.0,92612.0,0.0095816]
[1768863604920,0.01507212,92636.0,92614.0,0.10525499]
[1768863604921,0.11822652,92630.0,92614.0,0.10525499]
[1768863605117,0.11822652,92632.0,92615.0,0.10525499]
[1768863605312,0.11822652,92632.0,92617.0,0.10525499]
[1768863605615,0.11822652,92626.0,92623.0,0.10525499]
[1768863605819,0.09724,92648.0,92623.0,0.10525499]
[1768863606029,0.00051092,92645.0,92623.0,0.10525499]
[1768863606222,0.02896619,92644.0,92625.0,0.0095816]
[1768863606417,0.00051092,92646.0,92620.0,0.11605799]
[1768863606620,0.02895735,92645.0,92624.0,0.0203846]
[1768863606823,0.01703946,92646.0,92624.0,0.0203846]
[1768863607014,0.02895646,92645.0,92625.0,0.10525499]
[1768863607209,0.01652854,92653.0,92631.0,0.0095816]
[1768863607412,0.00051092,92655.0,92633.0,0.0095816]
[1768863607613,0.00051092,92655.0,92634.0,0.09724]
[1768863608118,0.01735384,92665.0,92639.0,0.0095816]
[1768863608319,0.04691588,92663.0,92640.0,0.0095816]
[1768863608512,0.00063471,92667.0,92643.0,0.10525499]
[1768863608712,0.00063471,92667.0,92644.0,0.10525499]
[1768863608913,0.01735384,92671.0,92647.0,0.0095816]
[1768863609309,0.01735384,92671.0,92647.0,0.10525499]
[1768863609622,0.01735384,92671.0,92634.0,0.09724]
[1768863609623,0.01735384,92677.0,92655.0,0.10525499]
[1768863609820,0.0004662,92682.0,92658.0,0.0095816]
[1768863610021,0.02890199,92681.0,92663.0,0.10525499]
[1768863610319,0.01623043,92697.0,92672.0,0.10525499]
[1768863610523,0.02623043,92697.0,92673.0,0.0095816]
[1768863610713,0.01669663,92703.0,92675.0,0.10525499]
[1768863610910,0.05669663,92703.0,92678.0,0.10525499]
[1768863611124,0.01623043,92703.0,92680.0,0.10288031]
[1768863611314,0.00237314,92704.0,92682.0,0.0095816]
[1768863611514,0.00237314,92704.0,92684.0,0.0095816]
[1768863611718,0.01860511,92716.0,92687.0,0.0095816]
[1768863611928,0.00020462,92719.0,92687.0,0.0095816]
[1768863612415,0.01686119,92722.0,92691.0,0.0095816]
[1768863612610,0.05686119,92722.0,92691.0,0.0095816]
[1768863612814,0.00257776,92726.0,92696.0,0.0095816]
[1768863613013,0.0972,92740.0,92698.0,0.0095816]
[1768863613213,0.05686119,92739.0,92714.0,0.10525499]
[1768863613420,0.06181198,92746.0,92720.0,0.10525499]
[1768863613621,0.06181198,92743.0,92714.0,0.0095816]
[1768863613829,0.0972,92754.0,92715.0,0.0972]
[1768863613830,0.05651895,92739.0,92715.0,0.0972]
[1768863614025,0.0614184,92746.0,92718.0,0.09567339]
[1768863614230,0.05651895,92745.0,92718.0,0.09567339]
[1768863614528,0.05651895,92745.0,92722.0,0.10525499]
[1768863614731,0.0614184,92752.0,92722.0,0.10525499]
[1768863616229,0.06200167,92749.0,92722.0,0.10288145]
[1768863617227,0.06736926,92745.0,92717.0,0.010792]
[1768863617429,0.0620032,92736.0,92708.0,0.0095816]
[1768863617730,0.10258029,92746.0,92714.0,0.0095816]
[1768863617933,0.00542029,92742.0,92715.0,0.09716]
[1768863618114,0.06778507,92741.0,92715.0,0.09716]
[1768863618314,0.06778507,92741.0,92716.0,0.09716]
[1768863619131,0.06236478,92721.0,92696.0,0.0095816]
[1768863619320,0.00779548,92718.0,92693.0,0.09567339]
[1768863619624,0.00766116,92710.0,92686.0,0.09567339]
[1768863619829,0.06146928,92709.0,92687.0,0.09716]
[1768863620829,0.00011876,92708.0,92687.0,0.09716]
[1768863621123,0.00011876,92708.0,92686.0,0.09567339]
[1768863621429,0.06913044,92700.0,92675.0,0.09716]
[1768863621632,0.053922,92688.0,92663.0,0.09567339]
[1768863621929,0.053922,92686.0,92663.0,0.09567339]
[1768863622325,0.053922,92684.0,92657.0,0.09716]
[1768863622632,0.053922,92682.0,92656.0,0.09567339]
[1768863622933,0.053922,92682.0,92656.0,0.19283339]
[1768863623529,0.05942878,92682.0,92656.0,0.09567339]
[1768863623721,0.04710676,92680.0,92655.0,0.09716]
[1768863623924,0.04710676,92678.0,92655.0,0.09716]
[1768863624324,0.00237405,92669.0,92655.0,0.09716]
[1768863624520,0.00237405,92669.0,92651.0,0.0095816]
[1768863624825,0.00237405,92669.0,92648.0,0.09191512]
[1768863625431,0.04710676,92667.0,92642.0,0.09716]
[1768863625730,0.05130408,92657.0,92626.0,0.09191512]
[1768863626025,0.09716,92666.0,92628.0,0.010802]
[1768863626026,0.0459681,92655.0,92628.0,0.010802]
[1768863626527,0.0459681,92655.0,92631.0,0.010802]
[1768863627533,0.0459681,92655.0,92631.0,0.00842629]
[1768863627734,0.0459681,92655.0,92628.0,0.09191512]
[1768863627922,0.0459681,92655.0,92632.0,0.010802]
[1768863629130,0.00237405,92669.0,92648.0,0.10176662]
[1768863629327,0.00237405,92669.0,92656.0,0.10176662]
[1768863629639,0.00010353,92679.0,92645.0,0.09716]
[1768863629640,0.00010353,92679.0,92663.0,0.10176662]
[1768863629822,0.04169941,92693.0,92667.0,0.09191512]
[1768863630025,0.04169941,92693.0,92667.0,0.10176662]
[1768863630226,0.04169941,92693.0,92669.0,0.09191512]
[1768863630728,9.528e-05,92692.0,92669.0,0.09191512]
[1768863630931,0.04639509,92691.0,92661.0,0.09191512]
[1768863631234,0.04639509,92679.0,92653.0,0.09191512]
[1768863632125,0.04639509,92679.0,92620.0,0.118703]
[1768863632126,0.04046181,92679.0,92651.0,0.09191512]
[1768863632324,0.04046181,92679.0,92651.0,0.09939205]
[1768863634031,0.0450322,92679.0,92651.0,0.09939205]
[1768863634236,0.04780914,92676.0,92651.0,0.08954055]
[1768863635934,0.04323875,92676.0,92651.0,0.08954055]
[1768863636534,0.09716,92682.0,92658.0,0.10176662]
[1768863637239,0.04314019,92684.0,92660.0,0.09191512]
[1768863637540,0.09716,92683.0,92660.0,0.09191512]
[1768863638537,0.09716,92683.0,92640.0,0.010801]
[1768863638538,0.09716,92690.0,92671.0,0.0098515]
[1768863638838,9.528e-05,92692.0,92677.0,0.09191512]
[1768863639832,0.00386741,92702.0,92677.0,0.09191512]
[1768863640033,0.09716,92701.0,92684.0,0.0098515]
[1768863640235,0.09716,92706.0,92687.0,0.10176662]
[1768863640437,0.09716,92706.0,92687.0,0.09939154]
[1768863640748,0.09716,92706.0,92688.0,0.0098515]
[1768863641145,0.00378455,92720.0,92691.0,0.00919321]
[1768863641348,0.09716,92721.0,92693.0,0.00919321]
[1768863641538,0.09716,92720.0,92693.0,0.00919321]
[1768863642251,0.09716,92720.0,92698.0,0.00919321]
[1768863642442,0.00378455,92728.0,92699.0,0.10698569]
[1768863642937,0.09716,92727.0,92699.0,0.10698569]
[1768863643132,0.13726636,92727.0,92699.0,0.10698569]
[1768863643442,0.047,92743.0,92696.0,0.09716]
[1768863643443,0.04385063,92743.0,92707.0,0.09779248]
[1768863643642,0.25141811,92796.0,92726.0,0.00919321]
[1768863643643,0.09716,92750.0,92726.0,0.00919321]
[1768863643947,0.09716,92750.0,92703.0,0.010794]
[1768863643948,0.09716,92750.0,92733.0,0.09779248]
[1768863644144,0.00615783,92764.0,92733.0,0.09779248]
[1768863644350,0.09716,92752.0,92733.0,0.09779248]
[1768863644557,0.04891635,92749.0,92723.0,0.09779248]
[1768863644842,0.04891635,92749.0,92693.0,0.10245324]
[1768863644843,0.04654434,92740.0,92711.0,0.09716]
[1768863645048,0.04654434,92734.0,92709.0,0.09779248]
[1768863645233,0.04654434,92734.0,92704.0,0.09716]
[1768863645234,0.040386,92732.0,92704.0,0.09716]
[1768863645435,0.09716,92731.0,92702.0,0.09779248]
[1768863645643,0.00489553,92730.0,92702.0,0.09779248]
[1768863645844,0.03686282,92730.0,92702.0,0.09779248]
[1768863647448,0.03686282,92738.0,92708.0,0.10698569]
[1768863647648,0.00237201,92749.0,92721.0,0.09779248]
[1768863647851,0.09716,92748.0,92721.0,0.10698569]
[1768863648550,0.00237201,92749.0,92727.0,0.010791]
[1768863648743,0.09716,92748.0,92727.0,0.00919321]
[1768863648944,0.09716,92748.0,92728.0,0.00919321]
[1768863649145,0.00237201,92749.0,92728.0,0.00919321]
[1768863649352,0.00237201,92749.0,92730.0,0.00919321]
[1768863649651,0.09953201,92749.0,92731.0,0.00919321]
[1768863649849,0.09953201,92749.0,92732.0,0.01079]
[1768863650050,0.09953201,92749.0,92732.0,0.01998321]
[1768863650754,0.09953201,92749.0,92733.0,0.09779248]
[1768863651252,0.00237201,92749.0,92725.0,0.09779248]
[1768863651553,0.00237201,92749.0,92727.0,0.09779248]
[1768863652757,0.09949201,92749.0,92727.0,0.09779248]
[1768863653250,0.00237201,92749.0,92728.0,0.00993659]
[1768863653453,0.00682229,92769.0,92739.0,0.09212448]
[1768863653655,0.09712,92763.0,92741.0,0.10291348]
[1768863653949,0.09712,92763.0,92738.0,0.00993659]
[1768863653950,0.09712,92763.0,92742.0,0.09212448]
[1768863656547,0.09712,92763.0,92730.0,0.09712]
[1768863656548,0.00237161,92764.0,92748.0,0.10206107]
[1768863656750,0.00416136,92783.0,92760.0,0.09212448]
[1768863656947,0.09712,92782.0,92766.0,0.010786]
[1768863657153,0.09712,92782.0,92762.0,0.09212448]
[1768863657345,0.0023711,92784.0,92762.0,0.09212448]
[1768863657644,0.09712,92783.0,92762.0,0.09212448]
[1768863659051,0.0023711,92784.0,92762.0,0.09212448]
[1768863659248,0.09712,92783.0,92762.0,0.09212448]
[1768863661953,0.03013734,92772.0,92747.0,0.09212448]
[1768863662147,0.0023711,92784.0,92716.0,0.04197908]
[1768863662148,0.00390896,92766.0,92739.0,0.09212448]
[1768863662347,0.00390896,92759.0,92732.0,0.18924448]
[1768863662549,0.09708,92758.0,92732.0,0.18924448]
[1768863662956,0.09708,92758.0,92733.0,0.09212448]
[1768863663347,0.09708,92758.0,92735.0,0.09212448]
[1768863668549,0.00374126,92757.0,92735.0,0.09212448]
[1768863669156,0.00374126,92756.0,92732.0,0.09712]
[1768863669362,0.00374126,92752.0,92728.0,0.09212448]
[1768863672164,0.00374126,92752.0,92728.0,0.10291548]
[1768863672465,0.00374126,92752.0,92728.0,0.11285207]
[1768863672666,0.09848475,92758.0,92730.0,0.09212448]
[1768863672966,0.00140475,92757.0,92730.0,0.09212448]
[1768863674462,0.00140475,92757.0,92730.0,0.10206107]
[1768863675474,0.00140475,92757.0,92732.0,0.09212448]
[1768863678059,0.00140475,92757.0,92732.0,0.10206107]
[1768863678265,0.09708,92774.0,92756.0,0.10291148]
[1768863678570,0.09708,92774.0,92760.0,0.10291148]
[1768863678768,0.09708,92774.0,92763.0,0.09212448]
[1768863679571,0.09708,92774.0,92746.0,0.09708]
[1768863679572,0.00183817,92769.0,92746.0,0.09708]
[1768863679973,0.02564666,92768.0,92746.0,0.18920448]
[1768863680159,0.02564904,92767.0,92747.0,0.09212448]
[1768863680363,0.00183817,92769.0,92747.0,0.09212448]
[1768863680666,0.02564968,92768.0,92749.0,0.09212448]
[1768863680865,0.02564968,92767.0,92749.0,0.09212448]
[1768863681076,0.09708,92774.0,92749.0,0.10206107]
[1768863681264,0.02565241,92773.0,92749.0,0.10206107]
[1768863681464,0.02565241,92772.0,92749.0,0.10206107]
[1768863681668,0.02565241,92771.0,92749.0,0.10206107]
[1768863681861,0.02565241,92770.0,92749.0,0.10206107]
[1768863682059,0.02565241,92769.0,92749.0,0.10206107]
[1768863682258,0.02565241,92768.0,92749.0,0.10206107]
[1768863682470,0.02565241,92767.0,92749.0,0.10206107]
[1768863682674,0.001,92772.0,92749.0,0.10206107]
[1768863682865,0.02565797,92771.0,92749.0,0.10206107]
[1768863683065,0.02565797,92770.0,92749.0,0.10206107]
[1768863683262,0.02565797,92769.0,92749.0,0.10206107]
[1768863683463,0.02565797,92768.0,92749.0,0.10206107]
[1768863683663,0.02565797,92767.0,92749.0,0.10206107]
[1768863683864,0.02565797,92766.0,92749.0,0.10206107]
[1768863684065,0.09708,92774.0,92749.0,0.10206107]
[1768863684265,0.02565873,92773.0,92749.0,0.10206107]
[1768863684465,0.02565873,92772.0,92749.0,0.10206107]
[1768863684668,0.02565873,92771.0,92749.0,0.10206107]
[1768863684874,0.02565873,92770.0,92749.0,0.10206107]
[1768863685071,0.02565873,92769.0,92749.0,0.10206107]
[1768863685279,0.02565873,92768.0,92749.0,0.10206107]
[1768863685472,0.02565873,92767.0,92749.0,0.10206107]
[1768863685777,0.02565873,92766.0,92749.0,0.10206107]
[1768863685969,0.001,92771.0,92749.0,0.10206107]
[1768863686175,0.02530646,92770.0,92749.0,0.11284907]
[1768863686377,0.02530646,92769.0,92751.0,0.09852241]
[1768863686572,0.02530646,92768.0,92751.0,0.09852241]